bitfinex/quotes_SOLUSD_20260208
["timestamp","ask_amount","ask_price","bid_price","bid_amount"]
[1770518484441,1.74423799,87.329,87.295,3.52834224]
[1770518486561,1.74423799,87.329,87.297,3.52834224]
[1770518487247,4.03288402,87.31,87.278,3.60211783]
[1770518488155,11.45108098,87.328,87.291,11.45586124]
[1770518488358,4.03288402,87.31,87.286,11.45656003]
[1770518488567,4.03288402,87.32,87.282,3.60211783]
[1770518488752,4.03288402,87.32,87.284,3.60211783]
[1770518489065,4.03288402,87.34,87.291,3.60211783]
[1770518489567,4.03288402,87.34,87.301,3.60211783]
[1770518489746,4.03288402,87.35,87.301,3.60211783]
[1770518490982,4.03288402,87.35,87.303,3.60211783]
[1770518493462,4.03288402,87.35,87.305,3.60211783]
[1770518493667,11.44518329,87.373,87.305,3.60211783]
[1770518493970,4.03288402,87.32,87.29,3.60211783]
[1770518494173,4.03288402,87.32,87.297,11.45503429]
[1770518495060,4.03288402,87.33,87.297,11.45503429]
[1770518495471,4.03288402,87.33,87.298,3.60211783]
[1770518495848,4.03288402,87.36,87.268,3.60211783]
[1770518495849,4.03288402,87.31,87.268,3.60211783]
[1770518496049,4.03288402,87.3,87.277,11.45766693]
[1770518496267,4.03288402,87.32,87.282,3.60211783]
[1770518498672,4.03288402,87.32,87.283,15.05910258]
[1770518498673,11.45226124,87.319,87.283,15.05910258]
[1770518499179,4.03288402,87.33,87.284,3.60211783]
[1770518499390,4.03288402,87.34,87.291,3.60211783]
[1770518499553,4.03288402,87.35,87.301,3.60211783]
[1770518501055,11.44832797,87.349,87.303,3.60211783]
[1770518503287,11.44832797,87.349,87.305,3.60211783]
[1770518505780,4.03288402,87.34,87.3,3.60211783]
[1770518505999,4.03288402,87.35,87.305,11.45403622]
[1770518506168,4.03288402,87.35,87.306,3.60211783]
[1770518506368,15.48116067,87.35,87.306,3.60211783]
[1770518506973,4.03288402,87.34,87.306,3.60211783]
[1770518507676,4.03288402,87.34,87.307,15.05595314]
[1770518507878,4.03288402,87.34,87.308,3.60211783]
[1770518508682,4.03288402,87.35,87.31,3.60211783]
[1770518508985,4.03288402,87.34,87.294,3.60211783]
[1770518509190,4.03288402,87.33,87.294,3.60211783]
[1770518509787,4.03288402,87.33,87.302,11.45439977]
[1770518511287,4.03288402,87.36,87.282,3.60211783]
[1770518511288,4.03288402,87.32,87.282,3.60211783]
[1770518511481,4.03786777,87.32,87.282,3.68907433]
[1770518512771,4.03786777,87.33,87.282,3.68907433]
[1770518513513,4.03786777,87.32,87.284,3.60211783]
[1770518515180,4.03786777,87.32,87.285,11.45672223]
[1770518515382,4.03786777,87.34,87.291,3.60211783]
[1770518516194,4.03786777,87.35,87.291,3.60211783]
[1770518517399,4.03786777,87.34,87.293,3.60211783]
[1770518518378,11.44963876,87.339,87.295,3.60211783]
[1770518520484,11.44963876,87.339,87.297,3.60211783]
[1770518521885,11.44963876,87.339,87.299,3.60211783]
[1770518522099,4.03786777,87.33,87.299,3.60211783]
[1770518523604,4.03786777,87.33,87.301,3.60211783]
[1770518524886,4.03786777,87.32,87.294,11.45542188]
[1770518525092,11.45094985,87.329,87.299,11.45488016]
[1770518525287,4.03786777,87.33,87.3,3.60211783]
[1770518526717,4.03786777,87.34,87.302,3.60211783]
[1770518526900,4.03786777,87.35,87.302,3.60211783]
[1770518529509,4.03786777,87.35,87.304,3.60211783]
[1770518530707,4.03786777,87.36,87.311,3.60211783]
[1770518531794,4.03786777,87.36,87.321,3.60211783]
[1770518533616,4.03786777,87.36,87.322,40.08153728]
[1770518533918,4.03786777,87.36,87.323,3.60211783]
[1770518534900,4.03786777,87.36,87.325,3.60211783]
[1770518536221,4.03786777,87.37,87.325,3.60211783]
[1770518536808,4.03786777,87.36,87.325,3.60211783]
[1770518537008,4.03786777,87.36,87.327,3.60211783]
[1770518539819,4.03786777,87.36,87.329,3.60211783]
[1770518540230,4.03786777,87.36,87.31,4.03786777]
[1770518540231,4.03786777,87.34,87.318,11.45238264]
[1770518541835,4.03786777,87.34,87.318,0.0869565]
[1770518550442,4.03786777,87.33,87.318,0.0869565]
[1770518550644,4.03786777,87.34,87.318,0.0869565]
[1770518551940,4.03786777,87.33,87.318,0.0869565]
[1770518552530,4.03786777,87.34,87.318,0.0869565]
[1770518554426,4.03786777,87.34,87.318,3.68907433]
[1770518555744,11.44963876,87.339,87.318,0.0869565]
[1770518556828,4.03786777,87.33,87.318,0.0869565]
[1770518558826,4.03786777,87.34,87.318,0.0869565]
[1770518559027,4.03786777,87.34,87.319,3.60211783]
[1770518563230,5.36086188,87.329,87.286,3.60211783]
[1770518563437,4.03786777,87.3,87.267,3.60211783]
[1770518563740,4.03786777,87.31,87.282,3.60211783]
[1770518564251,4.03786777,87.31,87.287,3.60211783]
[1770518564761,5.13032502,87.351,87.24,61.35070358]
[1770518564762,4.03786777,87.33,87.292,3.60211783]
[1770518565331,4.03786777,87.31,87.294,3.60211783]
[1770518565853,5.13032502,87.346,87.294,3.60211783]
[1770518566053,4.03786777,87.33,87.294,3.60211783]
[1770518566541,4.03786777,87.34,87.294,3.60211783]
[1770518566740,4.03786777,87.33,87.294,3.60211783]
[1770518567162,4.03786777,87.33,87.286,11.45648398]
[1770518567456,4.03786777,87.3,87.274,3.60211783]
[1770518568260,4.03786777,87.3,87.276,3.60211783]
[1770518569365,4.03786777,87.3,87.279,11.45750982]
[1770518569561,4.03786777,87.32,87.28,3.60211783]
[1770518570072,4.03786777,87.3,87.266,3.60211783]
[1770518570362,4.03786777,87.29,87.275,11.45798572]
[1770518570751,4.03786777,87.29,87.266,3.60211783]
[1770518571669,4.04055883,87.29,87.267,3.60211783]
[1770518575746,11.45482158,87.3,87.25,32.69364497]
[1770518575747,4.04055883,87.3,87.269,3.60211783]
[1770518575947,4.04055883,87.3,87.268,40.10633908]
[1770518575948,4.04055883,87.34,87.291,3.60211783]
[1770518576567,4.04055883,87.34,87.301,3.60211783]
[1770518577160,4.04055883,87.34,87.3,4.04055883]
[1770518577161,4.04055883,87.34,87.303,3.60211783]
[1770518577364,4.04055883,87.36,87.321,3.60211783]
[1770518578443,4.04055883,87.36,87.323,3.60211783]
[1770518580568,4.04055883,87.36,87.314,28.63209039]
[1770518580569,4.04055883,87.36,87.325,3.60211783]
[1770518580946,28.60958161,87.384,87.325,3.60211783]
[1770518580947,4.04055883,87.37,87.325,3.60211783]
[1770518581961,4.04055883,87.37,87.327,3.60211783]
[1770518583070,4.04055883,87.37,87.329,3.60211783]
[1770518583469,11.44487356,87.376,87.329,3.60211783]
[1770518583770,4.04055883,87.37,87.329,3.60211783]
[1770518584469,4.04055883,87.37,87.33,11.45081873]
[1770518584680,40.04759942,87.396,87.331,3.60211783]
[1770518584855,4.04055883,87.37,87.331,3.60211783]
[1770518585977,4.04055883,87.37,87.333,3.60211783]
[1770518586472,4.04055883,87.35,87.327,11.4512096]
[1770518588679,4.04055883,87.36,87.327,11.4512096]
[1770518589379,4.04055883,87.36,87.327,15.05332743]
[1770518589884,4.04055883,87.35,87.321,3.60211783]
[1770518592483,4.04055883,87.35,87.323,3.60211783]
[1770518593483,4.04055883,87.35,87.324,11.45160551]
[1770518593662,4.04055883,87.35,87.324,15.05372334]
[1770518594280,4.04055883,87.35,87.325,3.60211783]
[1770518594588,4.04055883,87.34,87.325,3.60211783]
[1770518594763,4.04055883,87.35,87.325,3.60211783]
[1770518595679,4.04055883,87.34,87.313,3.60211783]
[1770518597764,4.04055883,87.34,87.317,3.60211783]
[1770518598086,4.04055883,87.35,87.317,3.60211783]
[1770518598668,4.04055883,87.34,87.317,3.60211783]
[1770518599669,4.04055883,87.34,87.318,11.4523924]
[1770518599869,4.04055883,87.35,87.319,3.60211783]
[1770518600586,4.04055883,87.33,87.318,5.95e-06]
[1770518600971,4.04055883,87.33,87.302,28.63618023]
[1770518601987,4.04055883,87.33,87.291,40.0957716]
[1770518602693,3.3404004,87.329,87.292,3.55992199]
[1770518604070,3.3404004,87.329,87.294,3.55992199]
[1770518604871,3.3404004,87.334,87.294,3.55992199]
[1770518607702,3.3404004,87.334,87.296,3.55992199]
[1770518610396,3.3404004,87.334,87.298,3.55992199]
[1770518610596,4.04055883,87.35,87.311,3.55992199]
[1770518612496,0.24824791,87.349,87.312,40.0861279]
[1770518612794,0.24824791,87.349,87.313,3.55992199]
[1770518614799,0.24824791,87.349,87.315,3.55992199]
[1770518616802,0.24824791,87.349,87.317,3.47125911]
[1770518617903,0.24416142,87.339,87.317,3.47125911]
[1770518618780,3.2563234,87.329,87.29,58.0259404]
[1770518619395,4.04055883,87.32,87.29,58.0259404]
[1770518619996,3.2563234,87.319,87.292,28.63941286]
[1770518620306,4.04055883,87.34,87.293,3.36379126]
[1770518620601,4.04055883,87.33,87.293,3.36379126]
[1770518621298,4.04055883,87.34,87.294,40.09439365]
[1770518621484,4.04055883,87.34,87.295,3.36379126]
[1770518621908,4.04055883,87.34,87.301,3.36379126]
[1770518622404,0.45596884,87.339,87.301,3.36379126]
[1770518623105,0.4552091,87.345,87.301,3.36379126]
[1770518623304,0.4552091,87.345,87.303,3.36379126]
[1770518625108,0.4552091,87.345,87.305,3.36379126]
[1770518625419,4.04055883,87.34,87.305,3.36379126]
[1770518626384,4.04055883,87.34,87.307,3.36379126]
[1770518626582,0.4552091,87.345,87.307,3.36379126]
[1770518627095,4.04055883,87.35,87.307,3.36379126]
[1770518627308,4.49224495,87.35,87.307,3.36379126]
[1770518628606,4.49224495,87.35,87.308,40.08796443]
[1770518628798,4.04055883,87.35,87.309,3.36379126]
[1770518629111,0.44965605,87.352,87.311,3.36379126]
[1770518631311,0.44965605,87.352,87.312,40.0861279]
[1770518631494,0.44965605,87.352,87.313,3.36379126]
[1770518633407,0.44965605,87.352,87.315,3.36379126]
[1770518634311,4.03406515,87.37,87.321,3.58861928]
[1770518636511,4.03406515,87.37,87.323,3.58861928]
[1770518637807,4.03406515,87.37,87.33,4.03406515]
[1770518637998,4.03406515,87.38,87.331,3.58861928]
[1770518639911,4.03406515,87.38,87.333,3.58861928]
[1770518640315,4.03406515,87.39,87.341,3.58861928]
[1770518640511,4.03406515,87.39,87.351,3.58861928]
[1770518640995,4.03406515,87.4,87.351,3.58861928]
[1770518642405,4.03406515,87.4,87.353,3.58861928]
[1770518642606,4.03406515,87.4,87.352,40.06777177]
[1770518642607,4.23406515,87.41,87.371,3.58861928]
[1770518643812,4.23406515,87.41,87.373,3.58861928]
[1770518647222,4.23406515,87.41,87.375,3.58861928]
[1770518649308,4.23406515,87.41,87.374,40.05768305]
[1770518649309,4.23406515,87.41,87.377,3.58861928]
[1770518652522,0.2,87.41,87.379,3.58861928]
[1770518653819,0.2,87.41,87.381,3.58861928]
[1770518654416,0.2,87.42,87.391,3.58861928]
[1770518655326,4.03406515,87.41,87.381,3.58861928]
[1770518655810,4.03406515,87.41,87.382,40.05401569]
[1770518656212,4.03406515,87.41,87.383,3.58861928]
[1770518656613,4.23406515,87.42,87.383,3.58861928]
[1770518657825,4.23406515,87.42,87.38,4.03406515]
[1770518657826,4.23406515,87.42,87.384,40.05309896]
[1770518658022,4.23406515,87.42,87.385,3.58861928]
[1770518659421,0.2,87.42,87.385,3.58861928]
[1770518660430,0.2,87.42,87.387,3.58861928]
[1770518660927,1e-08,87.42,87.391,3.58861928]
[1770518661508,1e-08,87.42,87.401,3.58861928]
[1770518662622,1e-08,87.42,87.403,3.58861928]
[1770518664633,1e-08,87.42,87.405,3.58861928]
[1770518665331,1e-08,87.42,87.39,4.03406515]
[1770518665516,4.03406515,87.41,87.386,3.58861928]
[1770518665719,4.03406515,87.4,87.366,3.58861928]
[1770518665916,4.03406515,87.4,87.3,57.6185377]
[1770518665917,4.03406516,87.42,87.387,3.58861928]
[1770518666227,4.03406515,87.41,87.381,3.58861928]
[1770518666739,4.03406515,87.4,87.381,3.58861928]
[1770518667812,4.03406515,87.41,87.381,3.58861928]
[1770518673837,11.44046951,87.409,87.381,3.58861928]
[1770518674035,4.03406515,87.4,87.381,3.58861928]
[1770518674237,4.03406515,87.4,87.373,11.44516657]
[1770518674418,4.03406515,87.4,87.374,3.58861928]
[1770518675229,4.03406515,87.4,87.377,11.44454684]
[1770518675537,4.03406515,87.4,87.377,15.03316612]
[1770518680243,4.03406515,87.4,87.377,3.58861928]
[1770518681138,11.44046951,87.409,87.377,3.58861928]
[1770518682844,11.44046951,87.409,87.378,3.58861928]
[1770518685343,1e-08,87.42,87.381,3.58861928]
[1770518687032,4.03406516,87.42,87.381,3.58861928]
[1770518687444,1e-08,87.42,87.383,3.58861928]
[1770518690247,1e-08,87.42,87.385,3.58861928]
[1770518692351,1e-08,87.42,87.387,3.58861928]
[1770518693051,1e-08,87.42,87.391,3.58861928]
[1770518693355,4.03406516,87.42,87.391,3.58861928]
[1770518693849,1e-08,87.42,87.391,3.58861928]
[1770518695246,1e-08,87.42,87.393,3.58861928]
[1770518695857,4.02803152,87.41,87.387,11.44333338]
[1770518696246,4.02803152,87.41,87.372,28.6132032]
[1770518696247,4.02803152,87.41,87.381,11.44404321]
[1770518696552,4.02803152,87.4,87.372,11.44523148]
[1770518697450,4.02803152,87.4,87.37,3.58861928]
[1770518697654,4.02803152,87.4,87.372,3.58861928]
[1770518697859,4.02803152,87.4,87.371,15.03406456]
[1770518698232,4.02803152,87.39,87.357,3.58861928]
[1770518698531,4.02803152,87.38,87.345,3.58861928]
[1770518699451,4.02803152,87.38,87.353,11.44767712]
[1770518700557,4.02803152,87.39,87.353,11.44767712]
[1770518700963,4.02803152,87.38,87.353,11.44767712]
[1770518701457,4.02803152,87.37,87.341,3.58861928]
[1770518702263,4.02803152,87.37,87.337,11.44982442]
[1770518702264,4.02803152,87.36,87.337,11.44982442]
[1770518702464,4.02803152,87.36,87.328,3.58861928]
[1770518702658,4.02803152,87.35,87.325,11.45136228]
[1770518702839,4.02803152,87.35,87.329,11.45086484]
[1770518703038,5.13032502,87.387,87.335,11.45016316]
[1770518703039,4.02803152,87.36,87.335,11.45016316]
[1770518705149,4.02803152,87.37,87.335,11.45016316]
[1770518709064,4.02803152,87.37,87.335,3.58861928]
[1770518710665,4.02803152,87.37,87.336,11.45003206]
[1770518710968,11.44570728,87.369,87.335,3.58861928]
[1770518711171,11.44570728,87.369,87.335,15.03877735]
[1770518711674,11.44570728,87.369,87.336,3.58861928]
[1770518713385,11.44503852,87.375,87.338,3.58861928]
[1770518714172,3.35390809,87.349,87.28,0.1]
[1770518714359,3.35390809,87.329,87.28,4.12803152]
[1770518714564,3.35390809,87.329,87.292,3.50484525]
[1770518714565,2.85390809,87.329,87.292,3.50484525]
[1770518715270,2.85390809,87.329,87.28,4.12803152]
[1770518715271,2.85390809,87.329,87.299,3.50484525]
[1770518715588,4.02803152,87.36,87.311,3.50484525]
[1770518715752,11.44558508,87.37,87.331,3.50484525]
[1770518715951,11.44558508,87.37,87.333,3.50484525]
[1770518716164,4.02803152,87.38,87.333,3.50484525]
[1770518716475,5.36086188,87.417,87.298,40.09255652]
[1770518716476,11.44321498,87.389,87.351,3.50484525]
[1770518716670,3.02785201,87.388,87.353,3.50484525]
[1770518717391,28.60313931,87.403,87.32,4.02803152]
[1770518717392,3.02785201,87.395,87.355,3.50484525]
[1770518718378,3.02785201,87.395,87.357,3.50484525]
[1770518718759,3.02785201,87.395,87.359,3.50484525]
[1770518719285,3.02712379,87.409,87.371,3.50484525]
[1770518720587,4.02803152,87.41,87.371,3.50484525]
[1770518720588,3.02989241,87.419,87.371,3.50484525]
[1770518720874,3.02989241,87.419,87.374,3.50484525]
[1770518722275,3.02989241,87.419,87.375,11.44492131]
[1770518722573,3.02989241,87.419,87.377,3.50484525]
[1770518723057,4.02803152,87.41,87.377,3.50484525]
[1770518723258,4.02803152,87.41,87.379,3.50484525]
[1770518723460,3.03208684,87.413,87.379,3.50484525]
[1770518723659,3.03208684,87.413,87.381,3.50484525]
[1770518723876,7.06119671,87.41,87.381,3.50484525]
[1770518724377,7.06119671,87.41,87.384,3.50484525]
[1770518725178,7.06119671,87.41,87.386,3.50484525]
[1770518725179,4.02803152,87.41,87.386,3.50484525]
[1770518725482,3.03423115,87.414,87.386,3.50484525]
[1770518725956,3.03423115,87.414,87.388,3.50484525]
[1770518728258,3.03735613,87.409,87.389,43.56]
[1770518730278,3.03735613,87.409,87.383,3.50484525]
[1770518730462,3.03735613,87.409,87.39,43.58]
[1770518731164,3.03735613,87.409,87.387,3.50484525]
[1770518731360,3.03735613,87.409,87.318,57.9701834]
[1770518731361,3.04037466,87.399,87.356,3.50484525]
[1770518731559,7.06938934,87.38,87.358,3.50484525]
[1770518732174,7.06938934,87.38,87.36,3.50484525]
[1770518732374,3.04135782,87.38,87.36,3.50484525]
[1770518732869,3.04135782,87.38,87.362,3.50484525]
[1770518739485,3.04971329,87.388,87.362,3.50484525]
[1770518742682,3.04971329,87.388,87.363,14.71108934]
[1770518742865,3.04971329,87.388,87.364,3.26459598]
[1770518743979,3.04971329,87.388,87.362,3.26459598]
[1770518751373,3.05958476,87.369,87.324,3.26459598]
[1770518751592,3.05958476,87.369,87.301,57.27247987]
[1770518751593,3.05958476,87.369,87.342,3.26459598]
[1770518751793,3.05958476,87.369,87.31,4.02803152]
[1770518752099,3.46779828,87.339,87.313,11.45296596]
[1770518752278,3.46779828,87.339,87.314,43.88]
[1770518753394,3.46779828,87.339,87.296,28.63793079]
[1770518753395,3.46779828,87.339,87.316,11.45265472]
[1770518753987,4.02803152,87.36,87.29,62.15397192]
[1770518753988,3.46779828,87.329,87.298,3.26459598]
[1770518754180,3.46779828,87.319,87.299,43.92]
[1770518754701,3.46779828,87.319,87.295,11.45538198]
[1770518754995,3.46779828,87.309,87.296,43.92]
[1770518755384,3.46779828,87.319,87.293,3.26459598]
[1770518755597,3.46779828,87.319,87.294,47.18459598]
[1770518756397,3.46779828,87.319,87.295,3.26459598]
[1770518756980,3.46779828,87.319,87.296,43.94]
[1770518757596,3.46779828,87.319,87.296,3.26459598]
[1770518758306,3.46779828,87.319,87.297,43.94]
[1770518758593,3.46779828,87.319,87.298,3.26459598]
[1770518758786,3.46779828,87.325,87.298,3.26459598]
[1770518760397,3.46779828,87.325,87.299,3.26459598]
[1770518760575,3.46779828,87.348,87.31,4.03801156]
[1770518760772,3.46779828,87.348,87.312,3.26459598]
[1770518761496,3.46779828,87.348,87.314,3.26459598]
[1770518762596,3.46779828,87.348,87.315,3.26459598]
[1770518763993,3.46779828,87.348,87.316,11.45265472]
[1770518764198,3.46779828,87.348,87.317,3.26459598]
[1770518765598,3.46779828,87.348,87.3,32.67489586]
[1770518765599,3.46779828,87.348,87.32,3.26459598]
[1770518766292,3.46779828,87.348,87.322,3.40621298]
[1770518767709,3.31341381,87.339,87.316,3.40621298]
[1770518767899,3.31341381,87.329,87.29,0.1]
[1770518768096,3.31341381,87.309,87.29,0.1]
[1770518770105,7.35142537,87.3,87.29,0.1]
[1770518770607,3.31341381,87.3,87.29,0.1]
[1770518770984,3.31341381,87.299,87.28,0.1]
[1770518771507,3.31341381,87.299,87.28,3.50621298]
[1770518772500,3.31341381,87.299,87.28,0.1]
[1770518772719,3.36617777,87.289,87.26,0.1]
[1770518772897,3.36617777,87.282,87.261,91.2298031]
[1770518773098,3.36617777,87.282,87.262,3.34583857]
[1770518777316,3.36617777,87.279,87.26,0.1]
[1770518777816,3.36617777,87.279,87.26,3.44583857]
[1770518778020,11.45714279,87.282,87.26,0.1]
[1770518778021,3.36617777,87.269,87.26,0.1]
[1770518778705,3.36617777,87.279,87.26,0.1]
[1770518779297,3.36617777,87.277,87.26,0.1]
[1770518779619,3.36617777,87.269,87.252,3.34583857]
[1770518781419,3.36617777,87.259,87.24,0.1]
[1770518781599,3.36617777,87.259,87.241,3.34583857]
[1770518782295,7.46757747,87.267,87.241,3.34583857]
[1770518784005,7.46757747,87.267,87.243,3.34583857]
[1770518784797,3.36617777,87.266,87.243,3.34583857]
[1770518785622,7.46757747,87.267,87.243,3.34583857]
[1770518785830,7.46757747,87.267,87.245,3.34583857]
[1770518786214,3.36617777,87.299,87.251,3.34583857]
[1770518786411,3.36617777,87.289,87.251,3.34583857]
[1770518786612,7.43760857,87.299,87.261,3.34583857]
[1770518787719,7.43760857,87.299,87.263,3.34583857]
[1770518787918,10.80378634,87.299,87.271,3.34583857]
[1770518788118,3.36617777,87.298,87.271,3.34583857]
[1770518788310,7.43760857,87.299,87.271,3.34583857]
[1770518790711,7.43760857,87.299,87.273,3.34583857]
[1770518792831,7.40418933,87.31,87.275,3.34583857]
[1770518793014,3.36617777,87.322,87.281,3.34583857]
[1770518794930,3.36617777,87.322,87.283,3.34583857]
[1770518797234,3.36617777,87.322,87.285,3.24484344]
[1770518800117,3.36617777,87.322,87.287,3.24484344]
[1770518800534,7.45099799,87.324,87.291,3.24484344]
[1770518800731,7.45099799,87.324,87.301,3.24484344]
[1770518802126,7.45099799,87.324,87.3,4.03801156]
[1770518802127,3.33702904,87.343,87.304,3.24484344]
[1770518802328,10.83169919,87.359,87.321,3.24484344]
[1770518802713,7.49467015,87.359,87.331,3.24484344]
[1770518803722,3.33702904,87.387,87.341,3.24484344]
[1770518804233,7.5024555,87.397,87.373,3.24484344]
[1770518804432,3.33702904,87.389,87.36,11.44686858]
[1770518805137,3.33702904,87.389,87.365,11.44621878]
[1770518805841,3.33702904,87.389,87.36,11.44687486]
[1770518806427,3.33702904,87.389,87.35,4.03801156]
[1770518806428,3.33702904,87.389,87.363,3.24484344]
[1770518809649,3.33702904,87.389,87.357,3.24484344]
[1770518810636,3.33702904,87.389,87.36,4.03801156]
[1770518810841,3.33702904,87.396,87.361,3.24484344]
[1770518811845,3.33702904,87.396,87.362,11.44662439]
[1770518812150,3.33702904,87.396,87.363,3.24484344]
[1770518812347,3.33702904,87.379,87.335,28.62533896]
[1770518812521,3.33702904,87.359,87.31,4.03801156]
[1770518813348,3.33702904,87.359,87.299,5.13032502]
[1770518813349,3.33702904,87.359,87.33,4.03801156]
[1770518813532,3.33702904,87.379,87.33,4.03801156]
[1770518813928,3.33702904,87.379,87.331,11.45068761]
[1770518814129,3.33702904,87.377,87.331,11.45068761]
[1770518814337,11.44452837,87.378,87.331,11.45068761]
[1770518814338,3.33702904,87.369,87.332,3.24484344]
[1770518814545,3.33702904,87.359,87.332,3.24484344]
[1770518816139,3.33702904,87.359,87.32,4.03801156]
[1770518816140,3.33702904,87.359,87.334,3.24484344]
[1770518818930,3.33702904,87.357,87.325,3.24484344]
[1770518819132,3.33702904,87.339,87.321,11.45199894]
[1770518819745,4.03545736,87.4,87.322,3.24484344]
[1770518819746,3.33702904,87.357,87.322,3.24484344]
[1770518820747,3.33702904,87.369,87.331,3.24484344]
[1770518822837,3.33702904,87.369,87.333,3.24484344]
[1770518824443,7.46414525,87.381,87.35,4.03545736]
[1770518824644,3.33702904,87.395,87.361,3.24484344]
[1770518824857,3.33702904,87.395,87.363,3.24484344]
[1770518826856,3.33702904,87.395,87.364,11.44636234]
[1770518827031,3.48820238,87.417,87.371,3.29878177]
[1770518827232,3.48820238,87.417,87.381,3.29878177]
[1770518827450,3.48820238,87.417,87.364,40.0622682]
[1770518827451,3.48820238,87.417,87.391,3.29878177]
[1770518827758,7.50337924,87.418,87.391,3.29878177]
[1770518828155,7.50337924,87.418,87.401,3.29878177]
[1770518828351,3.48820238,87.425,87.401,3.29878177]
[1770518828659,0.2,87.44,87.411,3.29878177]
[1770518828856,3.68820238,87.44,87.411,3.29878177]
[1770518829060,3.68820238,87.44,87.413,3.29878177]
[1770518829759,0.2,87.44,87.413,3.29878177]
[1770518830164,0.2,87.44,87.421,3.29878177]
[1770518830569,3.48820238,87.439,87.412,14.73885864]
[1770518830864,3.48820238,87.439,87.413,3.29878177]
[1770518831065,0.2,87.44,87.415,3.29878177]
[1770518832245,3.39055945,87.44,87.415,3.41398294]
[1770518832447,3.19055945,87.439,87.408,14.85457488]
[1770518832661,3.19055945,87.439,87.413,11.43986998]
[1770518833267,3.19055945,87.439,87.41,14.85432157]
[1770518833461,3.19055945,87.439,87.411,3.41398294]
[1770518836460,3.19055945,87.439,87.413,3.41398294]
[1770518837959,3.19055945,87.429,87.393,3.41398294]
[1770518838460,3.19055945,87.429,87.395,3.41398294]
[1770518838846,3.19055945,87.439,87.401,3.41398294]
[1770518840359,3.19055945,87.439,87.4,10.78136204]
[1770518840360,3.19055945,87.439,87.403,3.41398294]
[1770518842171,3.19055945,87.439,87.405,3.41398294]
[1770518843973,3.19055945,87.439,87.39,10.78136204]
[1770518843974,3.19055945,87.429,87.399,14.85573522]
[1770518844175,3.19055945,87.429,87.4,3.41398294]
[1770518844752,3.19055945,87.429,87.392,3.41398294]
[1770518844952,3.19055945,87.419,87.392,3.41398294]
[1770518845974,3.19055945,87.419,87.385,11.44355593]
[1770518846878,3.19055945,87.419,87.385,14.85753887]
[1770518847675,3.19055945,87.419,87.388,3.41398294]
[1770518848962,3.19055945,87.419,87.377,3.41398294]
[1770518848963,3.19055945,87.418,87.377,3.41398294]
[1770518849482,3.19055945,87.418,87.381,3.41398294]
[1770518850383,3.19055945,87.416,87.387,3.41398294]
[1770518852084,3.19055945,87.416,87.389,3.41398294]
[1770518852284,3.19055945,87.422,87.391,3.41398294]
[1770518853676,3.19055945,87.439,87.401,3.41398294]
[1770518854376,3.19055945,87.439,87.411,3.41398294]
[1770518856883,3.19055945,87.439,87.413,3.4219176]
[1770518858565,3.19055945,87.439,87.414,11.43981513]
[1770518858766,3.19055945,87.439,87.415,3.4219176]
[1770518859773,3.19055945,87.439,87.416,11.43955339]
[1770518860175,3.19055945,87.439,87.417,3.4219176]
[1770518861983,3.19055945,87.439,87.419,3.4219176]
[1770518862991,3.19055945,87.439,87.413,3.4219176]
[1770518864979,3.19055945,87.439,87.414,11.43981513]
[1770518865181,3.19055945,87.439,87.414,14.86173273]
[1770518865594,3.19055945,87.439,87.415,3.4219176]
[1770518866191,3.39989742,87.429,87.398,3.4219176]
[1770518866595,3.39989742,87.429,87.4,11.44159291]
[1770518866793,3.39989742,87.429,87.406,11.44081211]
[1770518866975,3.39989742,87.429,87.404,11.44112397]
[1770518867181,3.39989742,87.429,87.397,14.86383946]
[1770518867807,3.39989742,87.427,87.397,11.44192186]
[1770518869278,3.39989742,87.427,87.391,11.44282592]
[1770518870289,3.39989742,87.419,87.391,11.44282592]
[1770518875404,3.39989742,87.419,87.391,3.4219176]
[1770518876000,3.39989742,87.409,87.371,11.44544528]
[1770518876301,3.39989742,87.409,87.372,3.4219176]
[1770518877088,3.39989742,87.409,87.381,3.4219176]
[1770518877497,3.39989742,87.409,87.382,11.44400448]
[1770518877703,3.39989742,87.409,87.383,3.4219176]
[1770518880619,3.39989742,87.42,87.385,3.4219176]
[1770518881289,4.02922723,87.42,87.385,3.4219176]
[1770518881490,3.39989742,87.409,87.377,11.44465245]
[1770518881709,3.39989742,87.409,87.378,3.4219176]
[1770518882816,3.39989742,87.407,87.378,3.4219176]
[1770518890323,7.45638612,87.424,87.346,3.37331909]
[1770518890324,3.21422665,87.389,87.346,3.37331909]
[1770518890627,3.21422665,87.379,87.355,3.37331909]
[1770518892005,3.21422665,87.379,87.358,3.37331909]
[1770518892632,7.45367529,87.403,87.32,61.28931677]
[1770518892633,3.23041123,87.391,87.36,3.4759167]
[1770518892935,3.23041123,87.391,87.361,3.4759167]
[1770518893104,3.23041123,87.389,87.361,3.4759167]
[1770518895923,3.23041123,87.389,87.362,14.92254109]
[1770518896708,3.23041123,87.389,87.363,3.4759167]
[1770518902911,3.23041123,87.387,87.363,3.4759167]
[1770518907918,3.23041123,87.402,87.363,3.4759167]
[1770518908229,3.23041123,87.4,87.365,3.4759167]
[1770518909028,3.23041123,87.4,87.37,4.02922723]